Cogmind - Beta 13 @@@ ROGUE MODE // 2024.03.31 @ 04:00:57 Player: oberon720 Result: Destroyed by JN-36I(R) with Subdweller Machine Gun Performance ------------- Evolutions (0) 0 Regions Visited (1) 200 Robots Destroyed (12) 60 Value Destroyed (325) 325 Prototype IDs (0) 0 Alien Tech Used (0) 0 Bonus (0) 0 TOTAL SCORE: 585 Bonus ------- None Cogmind --------- Core Integrity 0/250 Matter 276/300 Energy 265/265 System Corruption 0% Temperature Cool (23) Movement Core (250) Ox4 Location -10/Materials Parts ------- > --- POWER (1) -------- Reinforced Ion Engine > --- PROPULSION (2) --- (None) > --- UTILITY (2) ------ Structural Scanner > --- WEAPON (2) ------- Beam Rifle > --- INVENTORY (5) ---- Terrain Scan Processor Peak State ------------ > --- POWER ------------ Reinforced Ion Engine > --- PROPULSION ------- Flight Unit Flight Unit > --- UTILITY ---------- Heat Sink Structural Scanner > --- WEAPON ----------- Beam Rifle Assault Rifle > --- INVENTORY -------- Medium Laser [Rating: 9] Favorites ----------- Power Ion Engine Engine Ion Engine Propulsion Light Treads Treads Light Treads Leg Aluminum Leg Hover Unit Hover Unit Flight Unit Flight Unit Utility Heat Sink Device Heat Sink Storage Small Storage Unit Weapon Small Laser Energy Gun Small Laser Ballistic Gun Light Assault Rifle Build | -11 -10 ------- Run | Yrd Mat Slots Evolved . | . . Power . | . . Propulsion . | . . Utility . | . . Weapon . | . . Parts Attached 27 | 7 20 Power 4 | 2 2 Engine 4 | 2 2 Core . | . . Reactor . | . . Propulsion 10 | 2 8 Treads 2 | 2 . Leg 3 | . 3 Wheel . | . . Hover 2 | . 2 Flight 3 | . 3 Utility 4 | 1 3 Device 3 | . 3 Storage 1 | 1 . Processor . | . . Hackware . | . . Protection . | . . Artifact . | . . Weapon 9 | 2 7 Energy Gun 6 | 1 5 Energy Cannon . | . . Ballistic Gun 3 | 1 2 Ballistic Cannon . | . . Launcher . | . . Special Weapon . | . . Impact Weapon . | . . Slashing Weapon . | . . Piercing Weapon . | . . Special Melee Weapon . | . . Unidentified Prototypes . | . . Parts Lost 6 | . 6 Power . | . . Propulsion 3 | . 3 Utility 1 | . 1 Weapon 2 | . 2 Highest Loss Streak 4 | . 4 To Critical Strikes . | . . Average Slot Usage (%) 92 | . 92 Engine 14 | . 14 Treads 12 | . 12 Leg 7 | . 7 Hover 1 | . 1 Flight 6 | . 6 Device 14 | . 14 Storage 8 | . 8 Energy Gun 14 | . 14 Ballistic Gun 11 | . 11 Naked Turns . | . . Heaviest Build 17 | 12 17 Greatest Support 40 | 40 40 Greatest Overweight (x) 5 | 1 5 Average Overweight (x) . | . . Largest Inventory Capacity 8 | 8 8 Average Capacity 6 | 6 6 Most Carried 3 | 1 3 Average Carried . | . . Final Capacity 8 | 8 5 Final Carried 1 | . 1 Class Distribution -------------------- 61% | Mutant 38% | Scavenger-Mutant Dominant Class ---------------- Mutant | -10/Materials Resources | -11 -10 ----------- Run | Yrd Mat Matter Collected 464 | 254 210 Remotely . | . . Salvage Created 387 | . 387 Parts 28 | . 28 Haulers Intercepted . | . . Recyclers Shooed . | . . Parts Field Recycled . | . . Retrieved Matter . | . . Parts Self-Destructed . | . . Prevented . | . . Kills | -11 -10 ------- Run | Yrd Mat Combat Hostiles Destroyed 12 | . 12 Guns 12 | . 12 Classes Destroyed 2 | . 2 Swarmer 4 | . 4 Grunt 8 | . 8 Best Kill Streak 3 | . 3 Combat Bots Only 3 | . 3 Max Kills in Single Turn 1 | . 1 Gunslinging . | . . Exploded . | . . Melee . | . . Uniques/NPCs Destroyed . | . . Combat | -11 -10 -------- Run | Yrd Mat Hostile Shots Fired 142 | . 142 Missed 38 | . 38 Damage Taken 1212 | . 1212 Core 265 | . 265 Absorbed by Shields . | . . Core Remaining (%) 100 | 100 . Volleys Fired 40 | . 40 Largest 2 | . 2 Hottest 80 | . 80 Shots Fired 77 | . 77 Gun 77 | . 77 Cannon . | . . Launcher . | . . Special . | . . Kinetic 36 | . 36 Thermal 41 | . 41 Explosive . | . . Electromagnetic . | . . Robot Hit Streak 12 | . 12 Robot Miss Streak 6 | . 6 Penetration Max . | . . Secondary Targets 1 | . 1 Max Gunslinging Chain 1 | . 1 Shots Hit Robots 49 | . 49 Core Hits 23 | . 23 Critical Kills . | . . Critical Parts Destroyed . | . . Critical Strikes . | . . Melee Attacks . | . . Impact . | . . Slashing . | . . Piercing . | . . Sneak Attacks . | . . Combat Hostiles . | . . Follow-up Attacks . | . . Damage Inflicted 549 | . 549 Guns 549 | . 549 Cannons . | . . Explosions . | . . Melee . | . . Ramming . | . . Kinetic 232 | . 232 Thermal 317 | . 317 Explosive . | . . Electromagnetic . | . . Impact . | . . Slashing . | . . Piercing . | . . Highest Corruption . | . . Average Corruption . | . . Corruption Purged . | . . Corruption Blocked . | . . Overload Shots . | . . Overflow Damage . | . . Projectiles . | . . Explosions . | . . Melee . | . . Knockbacks . | . . Impact . | . . Kinetic . | . . Secondary . | . . Self-Inflicted Damage . | . . Shots . | . . Rammed . | . . Targets Rammed . | . . Kicked . | . . Crushed . | . . Highest Temperature 124 | . 124 Average Temperature 41 | . 41 Received Heat Transfer 489 | . 489 Siege Activations . | . . Robots Corrupted . | . . Combat Hostiles . | . . Parts Fried . | . . Impact Corruptions . | . . Robots Melted . | . . Combat Hostiles . | . . Parts Melted 6 | . 6 Heat Transferred 736 | . 736 Parts Sabotaged . | . . Parts Stolen . | . . Parts Stripped . | . . Power Chain Reactions . | . . Alert | -11 -10 ------- Run | Yrd Mat Peak Influence 175 | . 175 Initial . | . . Average 39 | . 42 Maximum Alert Level . | . . Low Security (%) 100 | 100 100 Level 1 . | . . Level 2 . | . . Level 3 . | . . Level 4 . | . . Level 5 . | . . High Security . | . . Max Security . | . . Squads Dispatched 5 | . 5 Investigation 2 | . 2 Extermination . | . . Reinforcement 3 | . 3 Assault . | . . Garrison . | . . Intercept . | . . Searches Triggered . | . . Construction Impeded . | . . Haulers Reinforced . | . . Active Scanning Responses . | . . Cargo Convoy Interrupts . | . . Stealth | -11 -10 --------- Run | Yrd Mat Distress Signals 2 | . 2 Communications Jammed . | . . Distress Signals . | . . Times Spotted 22 | . 22 Peak Tracking Total 6 | . 6 Tactical Retreats 2 | . 2 Traps | -11 -10 ------- Run | Yrd Mat Traps Triggered 1 | . 1 Indirectly . | . . Trap Hack Attempts . | . . Triggered . | . . Disarmed . | . . Reprogrammed . | . . Reused . | . . Traps Extracted . | . . Installed . | . . Triggered . | . . Machines | -11 -10 ---------- Run | Yrd Mat Machines Disabled . | . . Max in Single Turn . | . . Machines Repaired . | . . Machines Dismantled . | . . Machines Sabotaged . | . . Overloaded Fab Kills . | . . Hacking | -11 -10 --------- Run | Yrd Mat Machines Accessed 4 | . 4 Terminals 3 | . 3 Fabricators . | . . Repair Stations . | . . Recycling Units 1 | . 1 Scanalyzers . | . . Garrison Access . | . . Total Hacks 12 | . 12 Successful 9 | . 9 Failed 3 | . 3 Catastrophic 2 | . 2 Database Lockouts . | . . Manual 3 | . 3 Terminals 11 | . 11 Fabricators . | . . Repair Stations . | . . Recycling Units 1 | . 1 Scanalyzers . | . . Garrison Access . | . . Terminal Hacks 8 | . 8 Record 7 | . 7 Unreport Threat 1 | . 1 Fabricator Hacks . | . . Repair Station Hacks . | . . Recycling Unit Hacks 1 | . 1 Retrieve Components 1 | . 1 Scanalyzer . | . . Garrison Access Hacks . | . . Unauthorized Hacks . | . . Terminals . | . . Fabricators . | . . Repair Stations . | . . Recycling Units . | . . Scanalyzers . | . . Garrison Access . | . . Data Cores Recovered . | . . Used . | . . Hacking Detections 3 | . 3 Full Trace Events 1 | . 1 Feedback Events . | . . Feedback Blocked . | . . Robot Schematics Acquired . | . . Robots Built . | . . Authchips . | . . Time . | . . Total Robot Build Rating . | . . Part Schematics Acquired . | . . Parts Built . | . . Authchips . | . . Time . | . . Total Part Build Rating . | . . Parts Repaired . | . . Time . | . . Parts Recycled . | . . Recycled Matter . | . . Retrieved Matter . | . . Retrieved Components . | . . Parts Scanalyzed . | . . Part Schematics Acquired . | . . Parts Damaged . | . . Bothacking | -11 -10 ------------ Run | Yrd Mat Used RIF Installer . | . . Robots Hacked . | . . Non-combat . | . . Combat . | . . Robot Hacks Applied . | . . Relay Couplers Released . | . . Fabnet Peak Effective % . | . . Robots Rewired . | . . Allies Hacked . | . . Hacks Repelled . | . . Allies | -11 -10 -------- Run | Yrd Mat Total Allies . | . . Largest Group . | . . Highest-Rated Group . | . . Highest-Rated Ally . | . . Total Orders . | . . Ally Attacks . | . . Total Damage . | . . Kills . | . . Allies Corrupted . | . . Allies Melted . | . . Intel | -11 -10 ------- Run | Yrd Mat Robot Analysis Total . | . . Derelict Logs Recovered . | . . Drone Launches . | . . Drone Recoveries . | . . Exploration | -11 -10 ------------- Run | Yrd Mat Turns Passed 922 | 60 862 Spaces Moved 552 | 32 520 Core 7 | 6 1 Treads 228 | 26 202 Legs 142 | . 142 Wheels . | . . Hover 22 | . 22 Flight 153 | . 153 Fastest Speed 37 | 50 37 Average Speed 134 | 145 133 Slowest Speed 300 | 160 300 Overloaded Moves . | . . Propulsion Burnouts . | . . Robots Hopped . | . . Cave-ins Triggered . | . . Exploration Rate (%) 31 | 3 59 Regions Visited 1 Branch Regions . Pre-discovered Areas . | . . Known Exits Taken . | . . Unknown Exits Taken 1 | 1 . Scrap Searched . | . . Spaces Dug . | . . Terrain Destroyed . | . . Melee . | . . Projectile . | . . AOE . | . . Terrain Rammed . | . . Walls Destroyed . | . . Machines Disabled . | . . Actions | -11 -10 --------- Run | Yrd Mat Total 666 | 46 620 Wait . | . . Move 551 | 31 520 Hop . | . . Pick Up 29 | 7 22 Fast Attach . | . . Attach 12 | 6 6 Detach . | . . Swap 15 | 1 14 Drop 19 | 1 18 Fire 40 | . 40 Melee . | . . Ram . | . . Kick . | . . Crush . | . . Escape Stasis . | . . Rewire . | . . Trap . | . . Miscellaneous . | . . Route ------- -11/Scrapyard -10/Materials (discovered 2 exits: [*Mat] / [*Min]) History --------- Turn | Location | Event 14 | -11/Scrapyard | Discovered new exit (range 15) 61 | -11/Scrapyard | Entered Materials 309 | -10/Materials | Build established: Mutant 428 | -10/Materials | Core integrity fell below 50% 542 | -10/Materials | Discovered new exit (range 16) 700 | -10/Materials | Derelicts attacked the area 718 | -10/Materials | Discovered new exit (range 7) 749 | -10/Materials | Build established: Scavenger-Mutant 886 | -10/Materials | Core integrity fell below 20% 923 | -10/Materials | Destroyed by JN-36I(R) with Subdweller Machine Gun Last Messages --------------- Acquired 13 matter. K-01 Serf collects debris. Acquired Hover Unit. Acquired 21 matter. K-01 Serf collects debris. Acquired Terrain Scan Processor. K-01 Serf collects debris. U-05 Engineer builds a Wall. K-01 Serf collects debris. Acquired 34 matter. U-05 Engineer destroyed. R-06 Scavenger collects Beam Cannon. R-06 Scavenger collects Lgt. Treads. Heat Sink destroyed. Hover Unit destroyed. K-01 Serf collects debris. Flight Unit melted. Lgt. Ion Engine melted. S-10 Pest destroyed. Assault Rifle destroyed. Map ----- +----------------------------------------------------+ | *=%%! "####+### ?? # + | | ###+#########"* ## "?" # * # | | ######## %" ?"" # # ^""" | | Y" # # # # # """ | | "" # # ###+###+#####+## """ | | # """ # | | ####### """[# ^ ## | | # """ + !!== #### ### | # | | # """ # * #### ### | # | | " """ # """ # *##### #### ### # | | " """ # # #####+#+#### ### # | | " """ #########+##### # ? ##?????##^ # | | ####### # # ?????????? ??## """ # | | # # # # ?????????? ### """ # | | # # # # ????? #### ### """ # | | ####### + # # ????? #### ### # | | ?????## # # # ????? # ? # # | | ?????## # # # ????? + ?? ######+### | | ######## ########## # ????? # ? # | | #### ##########![ # ????? # ##?## | | #?## ##"""""""# ! # ????? # ##?## | | #?## ##" |"! "# !!# # ##?## | | #####?## ##" "# | ######### ##?## | | ??????## ##?##+#####+## | | ??????## < s % % ### ##### ### | | ??????## s@R=|!##" ##### ### | | ???##### ## ##; ###+#+## | #### ### | | ???## ############"## =%+ # "" | | ???##[[[[[[# # ## + "" | | ???##[[[[[[#! # ## # "" | | ???######### """ """ # ## ###### # "" | | ???######### """"""""" # ##### # # # | | ?????????? # """"" # ##### # ?? + # | | ?????????? # # ##?## # ?? # ###### | | ?????????? #######+####### ##?## # ?? # ###### | | ?????????? ###### + ##?## # ?? # ##???? | | ???????????????## ? #######?## ##??## ##???? | | ???????????????## #######?## ##??##+##???? | | ???????????????## ???? # ??? ????? | | ???????????????## #########????? # ??????????? | | ???????????????## #########????? # ??????????? | | ???????????????## ##???????????? # ??????????? | | ???????????????## ##???????????? # ??????????? | | ???????????????## ???????????????????????????? | | ???????????????## ????????????????????????????? | | ???????????????## ????????????????????????????? | | ???????????????## ????????????????????????????? | | ???????????????## ????????????????????????????? | | ????????????????? ???????????????????????????? | | ????????????????? ##???????????????????????????? | +----------------------------------------------------+ Best States ------------- Heat Dissipation 35 Energy Generation 12 Energy Capacity 265 Matter Stores 300 Matter Capacity 300 Sight Range 16 Terrain Scan Density 10 Evasion (%) 62 Recoil Reduction 2 Item Schematics ----------------- None Robot Schematics ------------------ None Fabricated ------------ Nothing Alien Tech Used ----------------- None Achievements -------------- None Challenges ------------ None Game ------ Seed ElectronLayeredModule Manual? 0 Play Time 00:17:50 Cumulative 19.7 hours Start 2024.03.31 @ 03:42:11 End 2024.03.31 @ 04:00:57 Sessions 1 Manual Loads 0 Difficulty Rogue Special Mode None Game No. 43 Rogue 40 Adventurer 0 Explorer 3 Win Type - Total 0 Types 0/0/0/0/0/0/0/0/0 Lore% 19 Gallery% 27 Achievement% 23 Wizard Run 0 Options --------- Layout 0 ASCII 0 Keyboard 0 Movement Mouse Keybinds 0 Fullscreen 2 Font 18/SmallcapsGlow Map View 76x50 Zoom Use 0% Tactical HUD 0 Map Filters NONE Filters NONE Steam 1 RUN: e6938804-ca78-438e-bab9-1bbabe949185